[Event "DLM Youth 2024"]
[Site "Tuebingen"]
[Date "2024.10.04"]
[Round "3"]
[White "Karle, Sam"]
[Black "Fuhrmann, Bahne"]
[Result "0-1"]
[ECO "C84"]
[WhiteElo "2124"]
[BlackElo "2146"]
[Annotator "RC"]
[PlyCount "68"]
[EventDate "2024.10.03"]
[EventType "team-swiss"]
[EventRounds "7"]
[EventCountry "GER"]
[SourceTitle "playchess.com"]
[Source "ChessBase"]
[SourceQuality "1"]
[TimeControl "40/5400+30:1800+30"]

1. e4 {[%emt 0:00:04]} e5 {[%emt 0:00:04]} 2. Nf3 {[%emt 0:00:07]} Nc6 {[%emt 0:00:03]} 3. Bb5 {[%emt 0:00:09]} a6 {[%emt 0:00:03]} 4. Ba4 {[%emt 0:00:07]} Nf6 {[%emt 0:00:04]} 5. O-O {[%emt 0:00:09]} Nxe4 {[%emt 0:00:03]} 6. d4 {[%emt 0:00:09]} Be7 {[%emt 0:00:03]} 7. Re1 {[%emt 0:00:10]} b5 {[%emt 0:00:06]} 8. Rxe4 {[%emt 0:00:07]} d5 {[%emt 0:00:03]} 9. Nxe5 {[%emt 0:00:10]} Nxe5 {[%emt 0:00:03]} 10. Rxe5 {[%emt 0:00:10]} bxa4 {[%emt 0:00:03]} 11. Qe2 {[%emt 0:00:18]} c6 {[%emt 0:00:04]} 12. Nc3 {[%emt 0:01:56]} a3 {[%emt 0:00:42]} 13. b3 {[%emt 0:00:13]} Be6 {[%emt 0:00:04]} 14. f4 {[%emt 0:12:32]} Kf8 {[%emt 0:00:07]} 15. f5 {[%emt 0:01:31]} Bd7 {[%emt 0:00:05]} 16. Na4 {[%emt 0:16:56]} f6 {[%emt 0:00:28]} 17. Re3 {[%emt 0:02:12]} Bxf5 {[%emt 0:00:07]} 18. Bd2 {[%emt 0:00:41]} h5 {[%emt 0:01:02]} 19. Ba5 {[%emt 0:02:45]} Qxa5 {[%emt 0:09:11]} 20. Rxe7 {[%emt 0:00:07]} Qb4 {[%emt 0:02:46]} 21. Re1 {[%emt 0:03:38]} Qxd4+ {[%emt 0:04:38]} 22. Kh1 {[%emt 0:02:10]} Qg4 {[%emt 0:21:23]} 23. Ra7 {[%emt 0:05:22]} Rc8 {[%emt 0:07:57]} 24. Qe7+ {[%emt 0:03:52]} Kg8 {[%emt 0:00:07]} 25. h3 {[%emt 0:05:59]} Qg6 {[%emt 0:01:25]} 26. Nb6 {[%emt 0:08:13]} Rf8 {[%emt 0:07:44]} 27. Nd7 {[%emt 0:09:28]} Bxd7 {[%emt 0:00:06]} 28. Qxd7 {[%emt 0:00:33]} Kh7 {[%emt 0:00:22]} 29. Qxc6 {[%emt 0:05:05]} Rc8 {[%emt 0:05:02]} 30. Qxd5 {[%emt 0:08:12]} Rxc2 {[%emt 0:01:04]} 31. Ree7 {[%emt 0:01:14]} Rg8 {[%emt 0:00:27]} 32. b4 {[%emt 0:03:02]} Kh6 {[%emt 0:05:17]} 33. Rxa6 {[%emt 0:03:31]} Qg3 {[%emt 0:02:27]} 34. Rc6 {[%emt 0:01:56]} Rd8 {[%emt 0:04:37]} 0-1

[Event "DLM Youth 2024"]
[Site "Tuebingen"]
[Date "2024.10.04"]
[Round "3"]
[White "Moeller, Maurin"]
[Black "Shen, Tingrui"]
[Result "0-1"]
[ECO "B55"]
[WhiteElo "2118"]
[BlackElo "2102"]
[Annotator "RC"]
[PlyCount "80"]
[EventDate "2024.10.03"]
[EventType "team-swiss"]
[EventRounds "7"]
[EventCountry "GER"]
[SourceTitle "playchess.com"]
[Source "ChessBase"]
[SourceQuality "1"]
[TimeControl "40/5400+30:1800+30"]

1. e4 {[%emt 0:00:08]} c5 {[%emt 0:00:19]} 2. Nf3 {[%emt 0:00:15]} d6 {[%emt 0:01:50]} 3. d4 {[%emt 0:00:25]} cxd4 {[%emt 0:00:09]} 4. Nxd4 {[%emt 0:00:18]} Nf6 {[%emt 0:00:13]} 5. Bc4 {[%emt 0:00:36]} g6 {[%emt 0:02:39]} 6. f3 {[%emt 0:00:51]} Qa5+ {[%emt 0:00:49]} 7. Nc3 {[%emt 0:01:32]} Bg7 {[%emt 0:00:53]} 8. Bb5+ {[%emt 0:04:16]} Bd7 {[%emt 0:04:02]} 9. Be3 {[%emt 0:09:29]} Bxb5 {[%emt 0:05:36]} 10. Ndxb5 {[%emt 0:00:33]} Nc6 {[%emt 0:01:51]} 11. O-O {[%emt 0:18:01]} O-O {[%emt 0:00:15]} 12. Qd2 {[%emt 0:05:28]} Ne5 {[%emt 0:02:01]} 13. b3 {[%emt 0:02:02]} Rfc8 {[%emt 0:01:23]} 14. Rfd1 {[%emt 0:10:15]} Kh8 {[%emt 0:17:34]} 15. Bd4 {[%emt 0:09:59]} a6 {[%emt 0:12:27]} 16. Na4 {[%emt 0:00:35]} Qxb5 {[%emt 0:07:50]} 17. Nb6 {[%emt 0:00:44]} Nc6 {[%emt 0:04:44]} 18. Be3 {[%emt 0:01:54]} Rab8 {[%emt 0:03:14]} 19. Nxc8 {[%emt 0:00:45]} Rxc8 {[%emt 0:00:18]} 20. c4 {[%emt 0:01:16]} Qh5 {[%emt 0:02:33]} 21. Rac1 {[%emt 0:01:30]} Nd7 {[%emt 0:00:58]} 22. Qd5 {[%emt 0:00:34]} Bh6 {[%emt 0:08:27]} 23. f4 {[%emt 0:10:29]} Nf6 {[%emt 0:04:04]} 24. Qxh5 {[%emt 0:06:25]} Nxh5 {[%emt 0:00:49]} 25. c5 {[%emt 0:00:43]} Bxf4 {[%emt 0:01:01]} 26. Bxf4 {[%emt 0:00:23]} Nxf4 {[%emt 0:00:17]} 27. Kf1 {[%emt 0:00:09]} dxc5 {[%emt 0:02:06]} 28. Rxc5 {[%emt 0:00:06]} Rc7 {[%emt 0:01:15]} 29. Rcc1 {[%emt 0:04:16]} e5 {[%emt 0:01:34]} 30. Kf2 {[%emt 0:02:02]} Ne6 {[%emt 0:00:46]} 31. Rd5 {[%emt 0:00:18]} Kg7 {[%emt 0:00:27]} 32. g4 {[%emt 0:01:32]} Kf6 {[%emt 0:02:28]} 33. h4 {[%emt 0:00:25]} h6 {[%emt 0:02:04]} 34. a3 {[%emt 0:01:21]} Ke7 {[%emt 0:03:27]} 35. Ke3 {[%emt 0:01:16]} f6 {[%emt 0:00:48]} 36. b4 {[%emt 0:00:29]} b6 {[%emt 0:02:11]} 37. b5 {[%emt 0:00:47]} Ncd4 {[%emt 0:00:11]} 38. Rxc7+ {[%emt 0:01:14]} Nxc7 {[%emt 0:00:11]} 39. bxa6 {[%emt 0:00:13]} Nxd5+ {[%emt 0:01:11]} 40. exd5 {[%emt 0:00:02]} Nb5 {[%emt 0:00:22]} 0-1

[Event "DLM Youth 2024"]
[Site "Tuebingen"]
[Date "2024.10.04"]
[Round "3"]
[White "Haubold, Christian"]
[Black "Kauth, Lukas"]
[Result "1-0"]
[ECO "B90"]
[WhiteElo "2084"]
[BlackElo "1988"]
[Annotator "RC"]
[PlyCount "119"]
[EventDate "2024.10.03"]
[EventType "team-swiss"]
[EventRounds "7"]
[EventCountry "GER"]
[SourceTitle "playchess.com"]
[Source "ChessBase"]
[SourceQuality "1"]
[TimeControl "40/5400+30:1800+30"]

1. e4 {[%emt 0:00:03]} c5 {[%emt 0:00:32]} 2. Nf3 {[%emt 0:00:13]} d6 {[%emt 0:00:17]} 3. d4 {[%emt 0:00:12]} cxd4 {[%emt 0:00:26]} 4. Nxd4 {[%emt 0:00:05]} Nf6 {[%emt 0:00:23]} 5. Nc3 {[%emt 0:00:19]} a6 {[%emt 0:00:47]} 6. Be3 {[%emt 0:00:23]} e5 {[%emt 0:00:46]} 7. Nb3 {[%emt 0:00:25]} Be6 {[%emt 0:00:46]} 8. h3 {[%emt 0:00:33]} Be7 {[%emt 0:00:30]} 9. f4 {[%emt 0:00:23]} exf4 {[%emt 0:00:48]} 10. Bxf4 {[%emt 0:00:34]} Nc6 {[%emt 0:00:34]} 11. Qe2 {[%emt 0:02:41]} Nd7 {[%emt 0:00:54]} 12. O-O-O {[%emt 0:06:35]} Nce5 {[%emt 0:00:29]} 13. Kb1 {[%emt 0:12:19]} Rc8 {[%emt 0:00:58]} 14. Nd5 {[%emt 0:06:47]} Bxd5 {[%emt 0:00:55]} 15. exd5 {[%emt 0:02:01]} O-O {[%emt 0:10:54]} 16. g4 {[%emt 0:05:19]} Re8 {[%emt 0:03:54]} 17. Qf2 {[%emt 0:12:16]} Bh4 {[%emt 0:02:20]} 18. Bg3 {[%emt 0:08:10]} Bxg3 {[%emt 0:00:42]} 19. Qxg3 {[%emt 0:00:02]} Qc7 {[%emt 0:01:30]} 20. Rh2 {[%emt 0:03:09]} Nc5 {[%emt 0:12:10]} 21. Nxc5 {[%emt 0:07:52]} Qxc5 {[%emt 0:00:19]} 22. g5 {[%emt 0:05:31]} Nc4 {[%emt 0:10:35]} 23. Bxc4 {[%emt 0:01:17]} Qxc4 {[%emt 0:00:14]} 24. h4 {[%emt 0:13:09]} Re5 {[%emt 0:07:54]} 25. b3 {[%emt 0:05:43]} Qe4 {[%emt 0:07:58]} 26. Qh3 {[%emt 0:00:40]} Qf5 {[%emt 0:01:02]} 27. Qxf5 {[%emt 0:01:33]} Rxf5 {[%emt 0:01:06]} 28. Rd4 {[%emt 0:00:28]} g6 {[%emt 0:02:04]} 29. c4 {[%emt 0:01:10]} b5 {[%emt 0:00:27]} 30. Kc2 {[%emt 0:00:33]} Rc5 {[%emt 0:01:28]} 31. Re2 {[%emt 0:01:12]} Kg7 {[%emt 0:00:19]} 32. Re7 {[%emt 0:03:13]} Rf2+ {[%emt 0:18:24]} 33. Kc3 {[%emt 0:00:18]} Rxa2 {[%emt 0:00:26]} 34. Rf4 {[%emt 0:00:40]} Rc8 {[%emt 0:01:53]} 35. Rfxf7+ {[%emt 0:00:04]} Kg8 {[%emt 0:00:05]} 36. Rg7+ {[%emt 0:00:06]} Kf8 {[%emt 0:00:13]} 37. Ref7+ {[%emt 0:00:16]} Ke8 {[%emt 0:00:10]} 38. Rxh7 {[%emt 0:00:09]} bxc4 {[%emt 0:01:01]} 39. bxc4 {[%emt 0:00:23]} a5 {[%emt 0:01:13]} 40. Ra7 {[%emt 0:00:18]} Ra3+ {[%emt 0:00:20]} 41. Kd4 {[%emt 0:30:08]} Rf3 {[%emt 0:30:07]} 42. Rh8+ {[%emt 0:00:09]} Rf8 {[%emt 0:00:03]} 43. Rxf8+ {[%emt 0:00:06]} Kxf8 {[%emt 0:00:03]} 44. Rxa5 {[%emt 0:00:05]} Rc7 {[%emt 0:00:20]} 45. Ra8+ {[%emt 0:00:23]} Kf7 {[%emt 0:00:25]} 46. Rd8 {[%emt 0:00:09]} Ke7 {[%emt 0:00:36]} 47. Rh8 {[%emt 0:00:06]} Rc5 {[%emt 0:00:03]} 48. Rh7+ {[%emt 0:00:08]} Kf8 {[%emt 0:00:32]} 49. Rd7 {[%emt 0:00:06]} Ra5 {[%emt 0:00:05]} 50. Rxd6 {[%emt 0:00:06]} Kf7 {[%emt 0:00:07]} 51. Rf6+ {[%emt 0:00:08]} Kg7 {[%emt 0:00:03]} 52. d6 {[%emt 0:00:05]} Ra1 {[%emt 0:00:04]} 53. c5 {[%emt 0:00:25]} Ra4+ {[%emt 0:00:10]} 54. Kd5 {[%emt 0:00:05]} Rxh4 {[%emt 0:00:09]} 55. d7 {[%emt 0:00:03]} Rh1 {[%emt 0:00:05]} 56. Rd6 {[%emt 0:00:15]} Rd1+ {[%emt 0:00:23]} 57. Kc6 {[%emt 0:00:05]} Rf1 {[%emt 0:00:04]} 58. d8=Q {[%emt 0:00:08]} Rf7 {[%emt 0:00:05]} 59. Rd7 {[%emt 0:00:08]} Rxd7 {[%emt 0:00:17]} 60. Qxd7+ {[%emt 0:00:05]} 1-0

[Event "DLM Youth 2024"]
[Site "Tuebingen"]
[Date "2024.10.04"]
[Round "3"]
[White "Sauer, Tim"]
[Black "Reuter, Elisa"]
[Result "1-0"]
[ECO "A22"]
[WhiteElo "2081"]
[BlackElo "1985"]
[Annotator "RC"]
[PlyCount "127"]
[EventDate "2024.10.03"]
[EventType "team-swiss"]
[EventRounds "7"]
[EventCountry "GER"]
[SourceTitle "playchess.com"]
[Source "ChessBase"]
[SourceQuality "1"]
[TimeControl "40/5400+30:1800+30"]

1. c4 {[%emt 0:00:03]} e5 {[%emt 0:00:03]} 2. Nc3 {[%emt 0:00:13]} Bb4 {[%emt 0:00:16]} 3. g3 {[%emt 0:00:29]} Nf6 {[%emt 0:00:08]} 4. Bg2 {[%emt 0:00:06]} O-O {[%emt 0:01:53]} 5. e4 {[%emt 0:01:19]} c6 {[%emt 0:04:19]} 6. Nge2 {[%emt 0:01:49]} a5 {[%emt 0:02:15]} 7. O-O {[%emt 0:01:04]} d6 {[%emt 0:00:40]} 8. h3 {[%emt 0:24:47]} Be6 {[%emt 0:03:05]} 9. d3 {[%emt 0:00:04]} d5 {[%emt 0:01:07]} 10. cxd5 {[%emt 0:12:26]} cxd5 {[%emt 0:00:09]} 11. d4 {[%emt 0:02:51]} Nc6 {[%emt 0:12:32]} 12. Bg5 {[%emt 0:04:35]} exd4 {[%emt 0:03:51]} 13. Nxd5 {[%emt 0:06:47]} Be7 {[%emt 0:07:03]} 14. Nxe7+ {[%emt 0:00:43]} Qxe7 {[%emt 0:00:07]} 15. Nxd4 {[%emt 0:00:46]} h6 {[%emt 0:00:58]} 16. Nxc6 {[%emt 0:03:20]} bxc6 {[%emt 0:00:06]} 17. Bf4 {[%emt 0:06:30]} Rfd8 {[%emt 0:00:59]} 18. Qc2 {[%emt 0:04:26]} Qb4 {[%emt 0:00:51]} 19. a3 {[%emt 0:08:11]} Qb5 {[%emt 0:00:55]} 20. Rfc1 {[%emt 0:01:41]} Rac8 {[%emt 0:00:34]} 21. a4 {[%emt 0:04:02]} Qb4 {[%emt 0:00:30]} 22. Ra3 {[%emt 0:05:28]} Rd4 {[%emt 0:01:29]} 23. Be5 {[%emt 0:05:34]} Rd2 {[%emt 0:01:59]} 24. Qc3 {[%emt 0:00:07]} Qxc3 {[%emt 0:03:15]} 25. Bxc3 {[%emt 0:00:22]} Rd3 {[%emt 0:00:43]} 26. Bf1 {[%emt 0:02:21]} Rd7 {[%emt 0:00:46]} 27. e5 {[%emt 0:00:10]} Ne4 {[%emt 0:01:29]} 28. Bxa5 {[%emt 0:00:23]} Nd2 {[%emt 0:00:56]} 29. Bc3 {[%emt 0:03:42]} Nxf1 {[%emt 0:04:49]} 30. Kxf1 {[%emt 0:00:12]} Bxh3+ {[%emt 0:00:05]} 31. Ke2 {[%emt 0:00:03]} Bf5 {[%emt 0:00:46]} 32. Be1 {[%emt 0:01:16]} c5 {[%emt 0:01:57]} 33. a5 {[%emt 0:00:23]} Ra7 {[%emt 0:01:56]} 34. Ke3 {[%emt 0:00:30]} c4 {[%emt 0:00:52]} 35. Ra4 {[%emt 0:00:35]} Be6 {[%emt 0:00:21]} 36. Bc3 {[%emt 0:00:39]} Rd8 {[%emt 0:01:18]} 37. a6 {[%emt 0:00:31]} Rd3+ {[%emt 0:03:44]} 38. Ke2 {[%emt 0:00:24]} Bd5 {[%emt 0:04:53]} 39. Raa1 {[%emt 0:00:35]} Bf3+ {[%emt 0:01:06]} 40. Ke1 {[%emt 0:00:11]} Rd8 {[%emt 0:01:11]} 41. Ra3 {[%emt 0:09:55]} Rad7 {[%emt 0:00:39]} 42. Bd4 {[%emt 0:04:53]} Rxd4 {[%emt 0:03:04]} 43. Rxf3 {[%emt 0:00:08]} Ra8 {[%emt 0:00:28]} 44. Ra1 {[%emt 0:01:00]} Rd5 {[%emt 0:00:42]} 45. Re3 {[%emt 0:00:33]} Ra7 {[%emt 0:02:05]} 46. Re4 {[%emt 0:00:50]} Rb5 {[%emt 0:01:10]} 47. Ra2 {[%emt 0:02:04]} Rb6 {[%emt 0:00:45]} 48. Rxc4 {[%emt 0:00:05]} Raxa6 {[%emt 0:00:23]} 49. Rxa6 {[%emt 0:00:11]} Rxa6 {[%emt 0:00:03]} 50. Kd2 {[%emt 0:04:26]} Kf8 {[%emt 0:00:31]} 51. Kc3 {[%emt 0:05:31]} Ke7 {[%emt 0:00:12]} 52. b4 {[%emt 0:01:36]} Ra3+ {[%emt 0:01:18]} 53. Kd4 {[%emt 0:00:26]} Rb3 {[%emt 0:01:11]} 54. Kd5 {[%emt 0:02:25]} g5 {[%emt 0:02:21]} 55. Kc6 {[%emt 0:01:40]} Kd8 {[%emt 0:02:06]} 56. b5 {[%emt 0:00:38]} Kc8 {[%emt 0:00:57]} 57. Kb6+ {[%emt 0:02:22]} Kd8 {[%emt 0:01:42]} 58. Rc6 {[%emt 0:00:37]} h5 {[%emt 0:00:44]} 59. Rh6 {[%emt 0:00:29]} h4 {[%emt 0:01:23]} 60. gxh4 {[%emt 0:00:17]} gxh4 {[%emt 0:01:42]} 61. Rh8+ {[%emt 0:00:28]} Kd7 {[%emt 0:00:24]} 62. Rxh4 {[%emt 0:00:25]} Rf3 {[%emt 0:00:32]} 63. Rh6 {[%emt 0:00:43]} Rxf2 {[%emt 0:01:03]} 64. Rf6 {[%emt 0:00:05]} 1-0

[Event "DLM Youth 2024"]
[Site "Tuebingen"]
[Date "2024.10.04"]
[Round "3"]
[White "Malinowsky, Levi"]
[Black "Mester, Philipp"]
[Result "0-1"]
[ECO "C54"]
[WhiteElo "2065"]
[BlackElo "1996"]
[Annotator "RC"]
[PlyCount "124"]
[EventDate "2024.10.03"]
[EventType "team-swiss"]
[EventRounds "7"]
[EventCountry "GER"]
[SourceTitle "playchess.com"]
[Source "ChessBase"]
[SourceQuality "1"]
[TimeControl "40/5400+30:1800+30"]

1. e4 {[%emt 0:00:03]} e5 {[%emt 0:00:13]} 2. Nf3 {[%emt 0:00:11]} Nc6 {[%emt 0:00:04]} 3. Bb5 {[%emt 0:00:18]} Nf6 {[%emt 0:00:12]} 4. d3 {[%emt 0:00:38]} Bc5 {[%emt 0:00:10]} 5. c3 {[%emt 0:00:58]} d6 {[%emt 0:01:57]} 6. O-O {[%emt 0:02:26]} O-O {[%emt 0:01:16]} 7. Nbd2 {[%emt 0:01:52]} a6 {[%emt 0:08:46]} 8. Ba4 {[%emt 0:01:36]} Ba7 {[%emt 0:00:54]} 9. h3 {[%emt 0:07:02]} Ne7 {[%emt 0:01:48]} 10. Re1 {[%emt 0:02:03]} Ng6 {[%emt 0:02:43]} 11. Nf1 {[%emt 0:02:52]} b5 {[%emt 0:08:28]} 12. Bc2 {[%emt 0:02:47]} Re8 {[%emt 0:01:51]} 13. Ng3 {[%emt 0:14:03]} Bb7 {[%emt 0:07:45]} 14. d4 {[%emt 0:02:28]} c5 {[%emt 0:03:47]} 15. d5 {[%emt 0:02:10]} Bc8 {[%emt 0:03:17]} 16. b3 {[%emt 0:08:45]} Bb6 {[%emt 0:09:51]} 17. Nh2 {[%emt 0:04:02]} Ba5 {[%emt 0:03:10]} 18. Bd2 {[%emt 0:02:54]} Rb8 {[%emt 0:10:49]} 19. Nhf1 {[%emt 0:02:17]} h6 {[%emt 0:04:48]} 20. Ne3 {[%emt 0:03:47]} Nf4 {[%emt 0:02:59]} 21. Nef5 {[%emt 0:03:48]} g6 {[%emt 0:01:24]} 22. Ne3 {[%emt 0:03:25]} Nh7 {[%emt 0:07:16]} 23. Ne2 {[%emt 0:08:16]} Qg5 {[%emt 0:04:05]} 24. Nxf4 {[%emt 0:02:07]} exf4 {[%emt 0:00:49]} 25. Ng4 {[%emt 0:03:19]} h5 {[%emt 0:01:01]} 26. b4 {[%emt 0:03:51]} cxb4 {[%emt 0:03:57]} 27. cxb4 {[%emt 0:00:22]} Bb6 {[%emt 0:01:14]} 28. Nh2 {[%emt 0:00:30]} Qg3 {[%emt 0:02:19]} 29. Qf3 {[%emt 0:00:29]} Ng5 {[%emt 0:01:15]} 30. Qxg3 {[%emt 0:06:27]} fxg3 {[%emt 0:00:06]} 31. Bxg5 {[%emt 0:00:57]} Bxf2+ {[%emt 0:02:30]} 32. Kh1 {[%emt 0:00:59]} Bxe1 {[%emt 0:00:06]} 33. Rxe1 {[%emt 0:00:21]} gxh2 {[%emt 0:00:05]} 34. Bf4 {[%emt 0:00:38]} Rd8 {[%emt 0:01:03]} 35. Kxh2 {[%emt 0:01:17]} f6 {[%emt 0:00:25]} 36. Be3 {[%emt 0:02:17]} Kg7 {[%emt 0:00:43]} 37. Bd4 {[%emt 0:00:39]} Rd7 {[%emt 0:01:21]} 38. Bd3 {[%emt 0:00:47]} Bb7 {[%emt 0:01:18]} 39. Rf1 {[%emt 0:00:59]} Rf7 {[%emt 0:00:12]} 40. g4 {[%emt 0:04:39]} hxg4 {[%emt 0:00:16]} 41. hxg4 {[%emt 0:30:02]} g5 {[%emt 0:32:40]} 42. Rf5 {[%emt 0:00:00]} Rh8+ {[%emt 0:00:00]} 43. Kg2 {[%emt 0:00:00]} Rg8 {[%emt 0:00:00]} 44. Kg3 {[%emt 0:00:00]} Bc8 {[%emt 0:00:00]} 45. Rf1 {[%emt 0:00:00]} Bd7 {[%emt 0:00:00]} 46. Rc1 {[%emt 0:00:00]} Rc8 {[%emt 0:00:00]} 47. Rf1 {[%emt 0:00:00]} Ra8 {[%emt 0:00:00]} 48. a3 {[%emt 0:00:00]} a5 {[%emt 0:00:00]} 49. Bc3 {[%emt 0:00:00]} Rc8 {[%emt 0:00:00]} 50. Bd2 {[%emt 0:00:00]} a4 {[%emt 0:00:00]} 51. Rc1 {[%emt 0:00:00]} Rff8 {[%emt 0:00:00]} 52. Rh1 {[%emt 0:00:00]} Rh8 {[%emt 0:00:00]} 53. Rxh8 {[%emt 0:00:00]} Rxh8 {[%emt 0:00:00]} 54. Kg2 {[%emt 0:00:00]} Bxg4 {[%emt 0:00:00]} 55. Bxb5 {[%emt 0:00:00]} Rh3 {[%emt 0:00:00]} 56. e5 {[%emt 0:00:00]} fxe5 {[%emt 0:00:13]} 57. Bxg5 {[%emt 0:00:00]} Rxa3 {[%emt 0:00:14]} 58. Be7 {[%emt 0:00:00]} Bf3+ {[%emt 0:00:15]} 59. Kf2 {[%emt 0:00:00]} Bxd5 {[%emt 0:00:07]} 60. Bxd6 {[%emt 0:00:00]} Kf6 {[%emt 0:00:21]} 61. Bd7 {[%emt 0:00:00]} Rf3+ {[%emt 0:00:32]} 62. Ke2 {[%emt 0:00:00]} a3 {[%emt 0:00:11]} 0-1

[Event "DLM Youth 2024"]
[Site "Tuebingen"]
[Date "2024.10.04"]
[Round "3"]
[White "Windmueller, Simon"]
[Black "Weber, Nikita"]
[Result "1/2-1/2"]
[ECO "B28"]
[WhiteElo "2052"]
[BlackElo "2130"]
[Annotator "NA RC"]
[PlyCount "126"]
[EventDate "2024.10.03"]
[EventType "team-swiss"]
[EventRounds "7"]
[EventCountry "GER"]
[SourceTitle "playchess.com"]
[Source "ChessBase"]
[SourceQuality "1"]
[TimeControl "40/5400+30:1800+30"]

1. e4 {[%emt 0:00:09]} c5 {[%emt 0:00:01]} 2. Nf3 {[%emt 0:00:26]} a6 {[%emt 0:00:01]} 3. c3 {[%emt 0:00:34]} d5 {[%emt 0:00:11]} 4. exd5 {[%emt 0:01:26]} Qxd5 {[%emt 0:00:02]} 5. d4 {[%emt 0:00:10]} e6 {[%emt 0:00:03]} 6. Be3 {[%emt 0:00:21]} Nd7 {[%emt 0:00:06]} 7. Nbd2 {[%emt 0:04:08]} Ngf6 {[%emt 0:02:48]} 8. h3 {[%emt 0:02:53]} b6 {[%emt 0:04:24]} 9. Qb3 {[%emt 0:37:42]} Bb7 $11 {[%emt 0:05:32]} 10. Rd1 {[%emt 0:07:23]} Qxb3 {[%emt 0:25:28]} 11. Nxb3 {[%emt 0:00:02]} Nd5 {[%emt 0:02:24]} 12. Bc1 {[%emt 0:00:01]} Rc8 {[%emt 0:07:46]} 13. dxc5 {[%emt 0:08:02]} Nxc5 {[%emt 0:00:45]} 14. Nxc5 {[%emt 0:00:13]} Bxc5 {[%emt 0:00:33]} 15. Be2 {[%emt 0:00:05]} h6 {[%emt 0:02:49]} 16. Ne5 {[%emt 0:01:03]} Nf6 {[%emt 0:05:16]} 17. O-O {[%emt 0:06:18]} b5 {[%emt 0:05:54]} 18. Bf3 {[%emt 0:04:51]} Bxf3 {[%emt 0:00:44]} 19. Nxf3 {[%emt 0:00:01]} O-O {[%emt 0:02:55]} 20. Bf4 {[%emt 0:03:16]} Rfd8 {[%emt 0:05:39]} 21. Be5 {[%emt 0:01:03]} Ne4 {[%emt 0:10:55]} 22. Bd4 {[%emt 0:01:16]} Bxd4 {[%emt 0:00:16]} 23. Nxd4 {[%emt 0:03:15]} Nc5 {[%emt 0:00:22]} 24. f4 {[%emt 0:01:25]} Rd5 {[%emt 0:03:06]} 25. Nb3 {[%emt 0:01:46]} Nd3 {[%emt 0:02:26]} 26. Rd2 {[%emt 0:00:05]} Rcd8 {[%emt 0:00:07]} 27. Nd4 {[%emt 0:00:51]} Nc5 {[%emt 0:01:45]} 28. Re2 {[%emt 0:00:17]} Na4 {[%emt 0:01:01]} 29. Rff2 {[%emt 0:01:20]} b4 {[%emt 0:01:35]} 30. Nc6 {[%emt 0:00:58]} Rd1+ {[%emt 0:01:53]} 31. Kh2 {[%emt 0:00:02]} bxc3 {[%emt 0:00:19]} 32. bxc3 {[%emt 0:06:19]} R8d6 {[%emt 0:00:23]} 33. Ne5 {[%emt 0:00:10]} Nxc3 {[%emt 0:00:42]} 34. Rc2 Ne4 {[%emt 0:01:25]} 35. Rfe2 {[%emt 0:00:23]} f5 {[%emt 0:00:24]} 36. Rc8+ {[%emt 0:00:30]} Kh7 {[%emt 0:02:20]} 37. Nf7 {[%emt 0:00:17]} R6d2 {[%emt 0:00:18]} 38. Rh8+ {[%emt 0:00:28]} Kg6 {[%emt 0:00:00]} 39. Ne5+ {[%emt 0:00:01]} Kh5 {[%emt 0:03:21]} 40. g4+ {[%emt 0:03:44]} fxg4 {[%emt 0:00:01]} 41. hxg4+ {[%emt 0:30:03]} Kh4 {[%emt 0:30:11]} 42. Nf3+ {[%emt 0:00:08]} Kxg4 {[%emt 0:00:08]} 43. Nxd2 {[%emt 0:00:15]} Nxd2 {[%emt 0:01:56]} 44. Kg2 {[%emt 0:01:18]} Nf3 {[%emt 0:00:00]} 45. Rg8 {[%emt 0:00:00]} Nh4+ {[%emt 0:00:00]} 46. Kf2 {[%emt 0:00:00]} Nf5 {[%emt 0:00:00]} 47. Re8 {[%emt 0:00:00]} Rd4 {[%emt 0:00:00]} 48. R2xe6 {[%emt 0:00:00]} Ra4 {[%emt 0:00:00]} 49. Rg6+ {[%emt 0:00:00]} Kxf4 {[%emt 0:00:00]} 50. Re2 {[%emt 0:00:00]} a5 {[%emt 0:00:00]} 51. Kg1 {[%emt 0:00:00]} Rd4 {[%emt 0:00:00]} 52. Rf2+ {[%emt 0:00:27]} Ke5 {[%emt 0:00:00]} 53. Rb6 {[%emt 0:00:28]} Nd6 {[%emt 0:00:00]} 54. Ra6 {[%emt 0:00:37]} Rd1+ {[%emt 0:00:00]} 55. Kg2 {[%emt 0:00:48]} Rd5 {[%emt 0:00:22]} 56. Ra7 {[%emt 0:00:00]} Nf5 {[%emt 0:00:32]} 57. Rb7 {[%emt 0:01:31]} g5 {[%emt 0:00:55]} 58. a4 {[%emt 0:00:44]} Ke4 {[%emt 0:04:50]} 59. Rb3 {[%emt 0:05:20]} g4 {[%emt 0:01:30]} 60. Re2+ {[%emt 0:00:05]} Kf4 {[%emt 0:00:08]} 61. Rf2+ {[%emt 0:01:23]} Ke4 {[%emt 0:00:00]} 62. Re2+ {[%emt 0:01:51]} Kf4 {[%emt 0:00:18]} 63. Rf2+ {[%emt 0:00:24]} Ke4 {[%emt 0:04:11]} 1/2-1/2

[Event "DLM Youth 2024"]
[Site "Tuebingen"]
[Date "2024.10.04"]
[Round "3"]
[White "Voigt, Anastasia"]
[Black "Wang, Enya Marie"]
[Result "1/2-1/2"]
[ECO "C55"]
[WhiteElo "2037"]
[BlackElo "1613"]
[Annotator "RC"]
[PlyCount "66"]
[EventDate "2024.10.03"]
[EventType "team-swiss"]
[EventRounds "7"]
[EventCountry "GER"]
[SourceTitle "playchess.com"]
[Source "ChessBase"]
[SourceQuality "1"]
[TimeControl "40/5400+30:1800+30"]

1. e4 {[%emt 0:00:02]} e5 {[%emt 0:00:06]} 2. Nf3 {[%emt 0:00:04]} Nc6 {[%emt 0:00:06]} 3. Bc4 {[%emt 0:00:04]} Nf6 {[%emt 0:00:07]} 4. d3 {[%emt 0:00:05]} h6 {[%emt 0:00:18]} 5. c3 {[%emt 0:00:12]} d6 {[%emt 0:00:22]} 6. Nbd2 {[%emt 0:01:08]} g6 {[%emt 0:00:27]} 7. a4 {[%emt 0:08:48]} Bg7 {[%emt 0:01:42]} 8. Ba2 {[%emt 0:02:46]} O-O {[%emt 0:00:48]} 9. O-O {[%emt 0:01:12]} d5 {[%emt 0:04:34]} 10. Re1 {[%emt 0:14:05]} Be6 {[%emt 0:03:46]} 11. exd5 {[%emt 0:02:19]} Nxd5 {[%emt 0:02:40]} 12. Nc4 {[%emt 0:01:45]} Nf4 {[%emt 0:05:10]} 13. d4 {[%emt 0:21:48]} exd4 {[%emt 0:08:58]} 14. Bxf4 {[%emt 0:05:10]} dxc3 {[%emt 0:00:29]} 15. Nfe5 {[%emt 0:23:20]} Qxd1 {[%emt 0:05:37]} 16. Raxd1 {[%emt 0:00:39]} cxb2 {[%emt 0:05:53]} 17. Bb1 {[%emt 0:07:37]} Nxe5 {[%emt 0:04:35]} 18. Nxe5 {[%emt 0:00:06]} Rad8 {[%emt 0:03:00]} 19. Bc2 {[%emt 0:01:59]} c5 {[%emt 0:01:50]} 20. Rb1 {[%emt 0:00:42]} g5 {[%emt 0:01:54]} 21. Bg3 {[%emt 0:03:11]} Rd2 {[%emt 0:00:49]} 22. Rxb2 {[%emt 0:01:14]} Bf5 {[%emt 0:01:00]} 23. Rxb7 {[%emt 0:00:38]} Rxc2 {[%emt 0:01:00]} 24. Rxa7 {[%emt 0:01:56]} Re8 {[%emt 0:01:04]} 25. f4 {[%emt 0:00:20]} gxf4 {[%emt 0:01:48]} 26. Bxf4 {[%emt 0:00:04]} f6 {[%emt 0:01:27]} 27. Nf3 {[%emt 0:00:19]} Rxe1+ {[%emt 0:02:23]} 28. Nxe1 {[%emt 0:00:04]} Ra2 {[%emt 0:02:31]} 29. Ra5 {[%emt 0:01:28]} Bf8 {[%emt 0:02:47]} 30. Be3 {[%emt 0:00:35]} Re2 {[%emt 0:02:03]} 31. Bf2 {[%emt 0:00:07]} Bg6 {[%emt 0:03:39]} 32. Kf1 {[%emt 0:00:19]} Re5 {[%emt 0:00:50]} 33. Ra8 {[%emt 0:01:32]} Be4 {[%emt 0:08:42]} 1/2-1/2